bitfinex/quotes_SOLUSD_20241116
["timestamp","ask_amount","ask_price","bid_price","bid_amount"]
[1731724816258,16.1281,219.63,219.55,15.89647777]
[1731724816662,20.6813,219.63,219.57,13.64647777]
[1731724818254,29.77457777,219.68,219.59,13.64647777]
[1731724818453,4.5522,219.67,219.61,13.64647777]
[1731724820462,4.5522,219.67,219.59,13.64647777]
[1731724821742,4.5522,219.67,219.61,13.64647777]
[1731724822865,4.5522,219.67,219.61,8.74980707]
[1731724825467,4.5522,219.67,219.63,8.74980707]
[1731724825657,4.5522,219.67,219.59,15.9387]
[1731724825658,4.5522,219.67,219.6,24.027864]
[1731724825860,4.5522,219.67,219.62,8.74980707]
[1731724826363,4.5522,219.67,219.64,8.74980707]
[1731724827574,16.1281,219.68,219.64,8.74980707]
[1731724827865,16.1281,219.68,219.66,8.74980707]
[1731724829566,4.5511,219.73,219.66,8.74980707]
[1731724829771,16.3895,219.74,219.72,8.74980707]
[1731724831046,20.9404,219.74,219.64,20.0]
[1731724831259,20.9404,219.74,219.69,8.74980707]
[1731724832854,20.9404,219.74,219.68,13.66294603]
[1731724834174,20.9404,219.74,219.7,13.66294603]
[1731724835174,4.5509,219.74,219.72,13.66294603]
[1731724835349,6.3649,219.77,219.72,13.66294603]
[1731724835549,4.5504,219.76,219.72,13.66294603]
[1731724835761,4.5504,219.76,219.65,4.5525]
[1731724835964,4.5504,219.76,219.7,13.66294603]
[1731724837174,4.5504,219.76,219.72,13.66294603]
[1731724837673,16.3895,219.79,219.74,13.66294603]
[1731724837852,16.3895,219.79,219.77,13.66294603]
[1731724838774,20.9393,219.79,219.77,13.66294603]
[1731724839463,4.5494,219.81,219.77,13.66294603]
[1731724840256,4.549,219.83,219.77,13.66294603]
[1731724840456,4.549,219.83,219.77,57.43983003]
[1731724842976,4.549,219.83,219.77,37.43983003]
[1731724844777,20.0,219.87,219.75,13.66294603]
[1731724844778,4.5497,219.8,219.75,13.66294603]
[1731724845385,13.66294603,219.84,219.75,13.66294603]
[1731724845684,4.5494,219.81,219.75,13.66294603]
[1731724846481,4.5494,219.81,219.74,15.9278]
[1731724846788,4.5494,219.81,219.77,13.66294603]
[1731724854863,4.5494,219.81,219.76,8.73810024]
[1731724855182,4.5486,219.85,219.77,43.87055862]
[1731724856365,4.5486,219.85,219.77,48.42075862]
[1731724858279,20.0,219.89,219.77,48.54624862]
[1731724858687,4.5483,219.86,219.77,48.54624862]
[1731724858985,4.5486,219.85,219.77,48.54624862]
[1731724861478,4.5483,219.87,219.77,48.54624862]
[1731724861674,49.3108,219.9,219.81,23.87055862]
[1731724861871,49.3108,219.9,219.86,8.73810024]
[1731724862373,49.3108,219.9,219.84,8.73810024]
[1731724863987,8.73810024,219.89,219.77,101.3755]
[1731724864186,8.73810024,219.87,219.78,8.73810024]
[1731724865391,4.5483,219.86,219.78,8.73810024]
[1731724865780,8.73810024,219.85,219.75,4.5504]
[1731724866087,8.73810024,219.83,219.75,8.73810024]
[1731724866382,8.73810024,219.85,219.77,8.73810024]
[1731724867184,4.5487,219.84,219.77,8.73810024]
[1731724868476,13.28680024,219.84,219.77,8.73810024]
[1731724868693,13.28680024,219.84,219.76,20.0]
[1731724868888,13.28680024,219.84,219.77,8.73810024]
[1731724870269,13.28680024,219.84,219.76,20.0]
[1731724870476,13.28680024,219.84,219.74,4.5507]
[1731724870477,8.73810024,219.8,219.68,15.9316]
[1731724870687,21.61237462,219.83,219.68,15.9316]
[1731724870688,8.73810024,219.78,219.68,11.3796]
[1731724870898,8.73810024,219.76,219.69,8.73810024]
[1731724871082,8.73810024,219.8,219.71,8.73810024]
[1731724872091,20.0,219.8,219.73,8.73810024]
[1731724872590,8.73810024,219.79,219.71,8.73810024]
[1731724872800,8.73810024,219.77,219.69,28.73810024]
[1731724872978,20.0,219.8,219.71,8.73810024]
[1731724873292,8.73810024,219.8,219.71,8.73810024]
[1731724873494,8.73810024,219.78,219.71,8.73810024]
[1731724874183,4.5502,219.77,219.71,8.73810024]
[1731724876685,4.5502,219.77,219.69,8.73810024]
[1731724877982,11.3734,219.81,219.69,8.73810024]
[1731724877983,8.73810024,219.76,219.69,8.73810024]
[1731724878598,8.73810024,219.78,219.69,8.73810024]
[1731724879179,8.73810024,219.8,219.71,8.73810024]
[1731724879474,4.5493,219.81,219.77,8.73810024]
[1731724879893,26.0677,219.83,219.77,8.73810024]
[1731724880195,177.58174504,219.85,219.72,23.776884]
[1731724880196,4.5486,219.85,219.79,8.73810024]
[1731724882096,11.6918448,219.87,219.79,13.28780024]
[1731724882598,4.5482,219.87,219.81,8.73810024]
[1731724883598,7.1436448,219.88,219.83,8.73810024]
[1731724884102,7.1436448,219.88,219.81,8.73810024]
[1731724884287,8.73810024,219.87,219.79,8.73810024]
[1731724884487,15.88174504,219.87,219.79,8.73810024]
[1731724885401,15.88174504,219.87,219.79,13.28780024]
[1731724885402,20.42994504,219.87,219.79,13.28780024]
[1731724888200,7.1436448,219.86,219.79,13.28780024]
[1731724888701,20.42994504,219.87,219.77,20.0]
[1731724888898,7.1436448,219.86,219.79,8.73810024]
[1731724889892,20.43024504,219.86,219.79,8.73810024]
[1731724891280,13.28660024,219.86,219.79,8.73810024]
[1731724891681,20.43024504,219.86,219.79,8.73810024]
[1731724893705,8.73810024,219.84,219.77,20.0]
[1731724893999,8.73810024,219.84,219.76,11.3758]
[1731724895492,4.5489,219.83,219.76,15.9262]
[1731724896511,4.5489,219.83,219.76,11.3758]
[1731724897716,4.5489,219.83,219.76,15.9262]
[1731724897888,4.5489,219.83,219.77,8.73810024]
[1731724898094,8.73810024,219.84,219.78,23.776884]
[1731724899101,25.27560024,219.84,219.77,11.3755]
[1731724899301,8.73810024,219.82,219.75,8.73810024]
[1731724899616,8.73810024,219.82,219.76,20.0]
[1731724900497,8.73810024,219.82,219.72,11.3776]
[1731724900707,8.73810024,219.78,219.71,8.73810024]
[1731724901005,8.73810024,219.76,219.69,13.28980024]
[1731724901193,8.73810024,219.76,219.69,8.73810024]
[1731724901704,8.73810024,219.76,219.67,24.67080024]
[1731724902017,8.73810024,219.75,219.67,24.67080024]
[1731724903016,13.28880024,219.75,219.67,24.67080024]
[1731724903698,13.28880024,219.75,219.68,20.0]
[1731724903993,29.82630024,219.75,219.67,24.67080024]
[1731724907216,21.0882,219.75,219.68,8.73810024]
[1731724907515,21.0882,219.75,219.68,13.29000024]
[1731724908191,4.5499,219.79,219.72,8.73810024]
[1731724908389,21.0871,219.8,219.74,8.73810024]
[1731724908611,8.73810024,219.78,219.7,8.73810024]
[1731724909616,4.5502,219.77,219.7,8.73810024]
[1731724912519,4.5502,219.77,219.7,13.28970024]
[1731724913395,4.5502,219.77,219.72,8.73810024]
[1731724913611,25.27560024,219.8,219.72,8.73810024]
[1731724913795,4.5497,219.79,219.72,8.73810024]
[1731724914792,16.5375,219.8,219.72,13.28920024]
[1731724914793,21.0871,219.8,219.72,13.28920024]
[1731724917716,8.73810024,219.79,219.7,13.28970024]
[1731724918017,8.73810024,219.79,219.71,0.27]
[1731724918201,21.0871,219.8,219.72,8.73810024]
[1731724918403,21.0871,219.8,219.74,8.73810024]
[1731724919014,21.0871,219.8,219.7,11.3791]
[1731724919221,8.73810024,219.78,219.7,11.3791]
[1731724919818,4.5497,219.79,219.71,8.73810024]
[1731724920513,4.5497,219.79,219.73,8.73810024]
[1731724924503,16.5375,219.8,219.75,8.73810024]
[1731724925003,21.0871,219.8,219.75,8.73810024]
[1731724925210,21.0871,219.8,219.73,8.73810024]
[1731724925824,21.0871,219.8,219.7,11.3791]
[1731724925825,21.0871,219.8,219.71,20.0]
[1731724926027,21.0871,219.8,219.71,28.73810024]
[1731724926323,21.0871,219.8,219.73,8.73810024]
[1731724926506,21.0871,219.8,219.75,8.73810024]
[1731724926698,21.0871,219.8,219.73,4.551]
[1731724926900,21.0871,219.8,219.73,8.73810024]
[1731724931122,21.0871,219.8,219.71,44.66810024]
[1731724932114,21.0871,219.8,219.71,40.11670024]
[1731724932434,29.82520024,219.8,219.69,8.73810024]
[1731724933516,4.55,219.78,219.69,8.73810024]
[1731724934537,13.28810024,219.78,219.69,8.73810024]
[1731724936533,15.35310024,219.74,219.62,15.9359]
[1731724936738,15.35310024,219.74,219.65,8.73810024]
[1731724937633,8.73810024,219.72,219.62,11.3828]
[1731724937838,8.73810024,219.72,219.64,8.73810024]
[1731724938528,24.80198,219.73,219.62,15.9361]
[1731724938715,24.80198,219.73,219.66,8.73810024]
[1731724940047,24.551,219.73,219.66,8.73810024]
[1731724940211,4.551,219.73,219.68,8.73810024]
[1731724940615,4.551,219.73,219.63,15.9358]
[1731724940815,4.551,219.73,219.66,20.0]
[1731724941221,4.551,219.73,219.67,8.73810024]
[1731724944124,13.28910024,219.73,219.65,8.73810024]
[1731724944826,4.551,219.73,219.67,8.73810024]
[1731724946925,6.615,219.74,219.71,8.73810024]
[1731724947140,15.6354,219.75,219.71,8.73810024]
[1731724947739,15.6354,219.75,219.67,43.776884]
[1731724947929,15.6354,219.75,219.72,8.73810024]
[1731724950641,15.6354,219.75,219.7,8.73810024]
[1731724951530,20.186,219.75,219.69,8.73810024]
[1731724952627,28.92410024,219.75,219.63,15.9352]
[1731724952835,28.92410024,219.75,219.67,8.73810024]
[1731724955249,28.92410024,219.75,219.63,11.3823]
[1731724955250,20.25098,219.74,219.66,8.73810024]
[1731724956852,4.551,219.73,219.66,8.73810024]
[1731724959349,13.28910024,219.73,219.66,8.73810024]
[1731724960444,4.551,219.73,219.66,8.73810024]
[1731724962139,4.551,219.73,219.63,11.3823]
[1731724962454,0.25098,219.72,219.65,8.73810024]
[1731724963242,20.25098,219.72,219.65,8.73810024]
[1731724963554,8.73810024,219.71,219.63,8.73810024]
[1731724963751,13.28950024,219.71,219.63,8.73810024]
[1731724964661,4.5514,219.71,219.65,8.73810024]
[1731724966043,4.5514,219.71,219.64,8.73810024]
[1731724966238,13.28950024,219.71,219.64,8.73810024]
[1731724966961,6.0073,219.7,219.63,8.73810024]
[1731724967350,6.0073,219.7,219.62,8.73810024]
[1731724967351,14.74540024,219.7,219.62,8.73810024]
[1731724967741,14.74540024,219.7,219.58,20.0]
[1731724968053,4.5518,219.69,219.62,8.73810024]
[1731724968567,8.73810024,219.68,219.6,8.73810024]
[1731724969462,16.6383,219.67,219.6,8.73810024]
[1731724970248,4.5524,219.66,219.6,8.73810024]
[1731724970561,4.5524,219.66,219.58,24.554]
[1731724970763,13.29050024,219.66,219.58,33.29210024]
[1731724971644,4.5524,219.66,219.6,8.73810024]
[1731724972564,33.29050024,219.66,219.57,20.12390024]
[1731724974865,33.29050024,219.66,219.57,8.73810024]
[1731724975045,8.73810024,219.64,219.57,8.73810024]
[1731724976346,4.80408,219.63,219.55,8.73810024]
[1731724977146,15.08590024,219.62,219.55,8.73810024]
[1731724977360,15.9345,219.61,219.55,8.73810024]
[1731724977748,0.25098,219.6,219.53,8.73810024]
[1731724978071,8.98908024,219.6,219.53,8.73810024]
[1731724978455,4.5539,219.59,219.53,8.73810024]
[1731724978853,4.5539,219.59,219.51,8.73810024]
[1731724980051,8.98908024,219.6,219.48,24.556]
[1731724980052,4.5543,219.57,219.48,24.556]
[1731724980255,13.29240024,219.57,219.49,8.73810024]
[1731724983473,4.5541,219.59,219.52,8.73810024]
[1731724983673,15.9345,219.61,219.55,8.73810024]
[1731724983674,20.488,219.61,219.55,8.73810024]
[1731724986055,0.25098,219.6,219.51,15.9438]
[1731724986254,0.25098,219.6,219.54,8.73810024]
[1731724987266,4.5539,219.59,219.54,8.73810024]
[1731724987965,0.25098,219.58,219.54,8.73810024]
[1731724988961,4.5542,219.58,219.54,8.73810024]
[1731724989253,4.5542,219.58,219.51,8.73810024]
[1731724989254,0.25098,219.57,219.51,8.73810024]
[1731724989977,0.25098,219.57,219.53,8.73810024]
[1731724990272,4.5542,219.58,219.53,8.73810024]
[1731724990660,15.9345,219.61,219.53,8.73810024]
[1731724990868,0.25098,219.59,219.55,8.73810024]
[1731724991350,4.554,219.59,219.55,8.73810024]
[1731724993275,15.9345,219.61,219.57,8.73810024]
[1731724994183,15.9345,219.61,219.59,8.73810024]
[1731724995078,15.9345,219.61,219.57,8.73810024]
[1731724999768,20.488,219.61,219.57,8.73810024]
[1731725000879,20.488,219.61,219.55,8.73810024]
[1731725002188,0.25098,219.6,219.55,8.73810024]
[1731725004262,4.80488,219.6,219.55,8.73810024]
[1731725007788,15.9345,219.61,219.59,8.73810024]
[1731725007991,11.3816,219.66,219.59,8.73810024]
[1731725007992,16.1716,219.66,219.59,8.73810024]
[1731725008189,20.7242,219.66,219.63,8.73810024]
[1731725010178,8.86359024,219.65,219.59,4.5539]
[1731725010471,0.12549,219.65,219.57,20.12370024]
[1731725010695,0.12549,219.65,219.59,8.73810024]
[1731725011202,20.7242,219.66,219.61,8.73810024]
[1731725011501,0.12549,219.65,219.59,8.73810024]
[1731725011676,4.5529,219.64,219.59,8.73810024]
[1731725011874,4.5529,219.64,219.57,20.12370024]
[1731725012469,8.86359024,219.63,219.55,8.73810024]
[1731725012675,0.12549,219.61,219.55,8.73810024]
[1731725013273,20.0,219.62,219.55,8.73810024]
[1731725013480,4.67879,219.62,219.55,8.73810024]
[1731725013792,4.67879,219.62,219.57,8.73810024]
[1731725015190,4.5529,219.64,219.57,8.73810024]
[1731725015975,4.5529,219.64,219.59,8.73810024]
[1731725016278,4.5529,219.64,219.56,15.9408]
[1731725016485,0.12549,219.63,219.48,86.3688]
[1731725016690,8.86359024,219.63,219.55,8.73810024]
[1731725017388,43.776884,219.62,219.55,8.73810024]
[1731725017689,0.12549,219.61,219.55,8.73810024]
[1731725018273,8.86359024,219.61,219.53,8.73810024]
[1731725019189,0.12549,219.59,219.53,8.73810024]
[1731725019699,0.12549,219.59,219.52,8.73810024]
[1731725020078,8.86359024,219.59,219.52,8.73810024]
[1731725020278,0.12549,219.57,219.52,8.73810024]
[1731725021393,4.67989,219.57,219.52,8.73810024]
[1731725022778,4.67989,219.57,219.51,8.73810024]
[1731725022779,0.12549,219.55,219.51,8.73810024]
[1731725023284,0.12549,219.55,219.5,8.73810024]
[1731725023998,4.68019,219.55,219.5,8.73810024]
[1731725024174,4.68019,219.55,219.51,8.73810024]
[1731725024602,4.68019,219.55,219.52,8.73810024]
[1731725025182,4.68019,219.55,219.48,24.5561]
[1731725025396,23.776884,219.57,219.52,8.73810024]
[1731725025397,4.5543,219.57,219.52,8.73810024]
[1731725025705,4.5543,219.57,219.54,8.73810024]
[1731725027398,4.5543,219.57,219.5,4.5557]
[1731725027709,4.5543,219.57,219.53,8.73810024]
[1731725028294,28.73810024,219.55,219.41,76.2031]
[1731725028495,23.902374,219.52,219.45,8.73810024]
[1731725030187,23.902374,219.5,219.45,8.73810024]
[1731725031386,0.12549,219.48,219.4,4.5577]
[1731725031585,0.12549,219.48,219.44,8.73810024]
[1731725032706,4.5563,219.48,219.4,20.0]
[1731725032910,4.5563,219.48,219.42,8.73810024]
[1731725033112,4.5563,219.48,219.4,20.0]
[1731725033283,4.5563,219.48,219.43,8.73810024]
[1731725033482,4.5563,219.48,219.4,20.0]
[1731725033688,4.5563,219.48,219.42,8.73810024]
[1731725034102,4.5563,219.48,219.39,15.9529]
[1731725034387,4.5563,219.48,219.41,8.73810024]
[1731725034795,4.5563,219.48,219.43,8.73810024]
[1731725036905,23.902374,219.47,219.41,8.73810024]
[1731725037812,23.902374,219.47,219.43,8.73810024]
[1731725038010,15.6447,219.5,219.43,8.73810024]
[1731725038204,0.12549,219.48,219.45,8.73810024]
[1731725039006,0.12549,219.49,219.45,8.73810024]
[1731725039207,4.5562,219.48,219.45,8.73810024]
[1731725041205,4.5562,219.48,219.39,11.3949]
[1731725041604,4.5562,219.48,219.43,8.73810024]
[1731725043810,23.902374,219.47,219.41,8.73810024]
[1731725044406,23.902374,219.47,219.39,11.3949]
[1731725044603,23.902374,219.47,219.41,8.73810024]
[1731725045127,4.5566,219.46,219.41,8.73810024]
[1731725046401,4.5566,219.46,219.35,15.9562]
[1731725046606,4.5566,219.46,219.42,8.73810024]
[1731725047326,0.12549,219.45,219.42,8.73810024]
[1731725048511,23.776884,219.46,219.42,8.73810024]
[1731725048993,0.12549,219.45,219.42,8.73810024]
[1731725052032,4.68239,219.45,219.42,8.73810024]
[1731725052519,24.556,219.49,219.44,8.73810024]
[1731725052735,24.556,219.49,219.46,8.73810024]
[1731725053300,0.1,219.57,219.38,15.9539]
[1731725053301,4.5557,219.51,219.4,70.0]
[1731725053501,4.5557,219.51,219.48,8.73810024]
[1731725053906,20.0,219.49,219.47,8.73810024]
[1731725054100,8.73810024,219.55,219.47,8.73810024]
[1731725054101,4.5551,219.54,219.47,8.73810024]
[1731725054325,4.5551,219.54,219.51,8.73810024]
[1731725055011,4.5551,219.54,219.52,8.73810024]
[1731725055829,15.9018,219.55,219.52,8.73810024]
[1731725056018,4.5546,219.56,219.54,8.73810024]
[1731725056416,4.5542,219.58,219.54,8.73810024]
[1731725056927,4.5542,219.58,219.49,11.3898]
[1731725056928,4.5542,219.58,219.53,8.73810024]
[1731725062317,4.5542,219.58,219.49,11.3898]
[1731725062620,4.5542,219.58,219.54,8.73810024]
[1731725063228,0.12549,219.57,219.54,8.73810024]
[1731725063752,23.902374,219.57,219.52,8.73810024]
[1731725064540,0.12549,219.55,219.52,8.73810024]
[1731725065538,0.12549,219.55,219.54,8.73810024]
[1731725066845,4.5541,219.58,219.54,8.73810024]
[1731725067142,20.1453,219.6,219.56,8.73810024]
[1731725067521,20.1453,219.6,219.54,8.73810024]
[1731725067845,0.09367462,219.59,219.49,11.39]
[1731725068047,8.73810024,219.59,219.52,8.73810024]
[1731725068230,31.5296,219.6,219.52,8.73810024]
[1731725068434,44.027864,219.59,219.52,8.73810024]
[1731725069129,44.027864,219.59,219.47,4.5562]
[1731725069335,44.027864,219.59,219.52,8.73810024]
[1731725069553,44.027864,219.59,219.54,8.73810024]
[1731725070549,23.902374,219.57,219.54,8.73810024]
[1731725070734,0.12549,219.57,219.54,8.73810024]
[1731725071453,4.5541,219.58,219.54,8.73810024]
[1731725073432,8.73810024,219.56,219.47,11.391]
[1731725073635,0.12549,219.55,219.47,11.391]
[1731725073842,0.12549,219.55,219.48,8.73810024]
[1731725074238,23.902374,219.57,219.48,8.73810024]
[1731725074555,0.12549,219.55,219.5,8.73810024]
[1731725075134,4.5542,219.58,219.52,8.73810024]
[1731725075338,4.5542,219.58,219.47,85.9474]
[1731725075339,4.5542,219.58,219.54,8.73810024]
[1731725079864,15.5915,219.6,219.54,8.73810024]
[1731725080165,20.1453,219.6,219.54,8.73810024]
[1731725090949,4.5541,219.58,219.52,8.73810024]
[1731725091155,13.29220024,219.58,219.5,8.73810024]
[1731725091367,4.5541,219.58,219.51,8.73810024]
[1731725091545,4.5541,219.58,219.52,8.73810024]
[1731725093869,4.5541,219.58,219.53,8.73810024]
[1731725094046,4.5541,219.58,219.52,8.73810024]
[1731725095163,32.64047424,219.57,219.47,15.9473]
[1731725095467,0.12549,219.55,219.49,8.73810024]
[1731725096253,4.5549,219.54,219.49,8.73810024]
[1731725097665,4.5549,219.54,219.47,8.73810024]
[1731725097871,4.5549,219.54,219.5,8.73810024]
[1731725098172,24.5546,219.56,219.51,8.73810024]
[1731725098547,24.5546,219.56,219.52,8.73810024]
[1731725098771,24.5546,219.56,219.51,8.73810024]
[1731725100075,23.902374,219.55,219.49,8.73810024]
[1731725101072,4.5549,219.54,219.49,8.73810024]
[1731725102267,4.5547,219.56,219.51,8.73810024]
[1731725102472,8.73810024,219.54,219.4,5.22666999]
[1731725102662,8.73810024,219.53,219.45,8.73810024]
[1731725102975,24.5547,219.56,219.39,99.0038]
[1731725102976,8.73810024,219.51,219.41,4.5576]
[1731725103160,8.73810024,219.49,219.41,8.73810024]
[1731725103559,4.5558,219.5,219.41,8.73810024]
[1731725103759,23.902374,219.49,219.41,8.73810024]
[1731725104279,0.12549,219.47,219.41,8.73810024]
[1731725104989,0.12549,219.47,219.42,8.73810024]
[1731725105475,4.68169,219.48,219.42,8.73810024]
[1731725110484,4.68169,219.48,219.41,8.73810024]
[1731725110780,0.12549,219.46,219.39,20.13330024]
[1731725111982,4.5568,219.45,219.39,8.73810024]
[1731725114682,4.5568,219.45,219.4,8.73810024]
[1731725115980,4.5568,219.45,219.35,15.9562]
[1731725115981,8.73810024,219.43,219.35,11.3973]
[1731725116286,0.12549,219.4,219.34,8.73810024]
[1731725116764,4.558,219.39,219.34,8.73810024]
[1731725118184,4.558,219.39,219.3,11.3995]
[1731725118563,4.558,219.39,219.33,8.73810024]
[1731725119479,4.558,219.39,219.34,8.73810024]
[1731725119686,4.5573,219.43,219.38,8.73810024]
[1731725119991,25.38130024,219.46,219.39,8.73810024]
[1731725120168,4.5569,219.45,219.34,34.95240096]
[1731725120365,4.5569,219.45,219.39,8.73810024]
[1731725120566,13.29500024,219.45,219.32,20.0]
[1731725120767,13.29500024,219.45,219.36,8.73810024]
[1731725121088,23.776884,219.44,219.36,8.73810024]
[1731725121490,4.5574,219.42,219.36,8.73810024]
[1731725123377,4.5574,219.42,219.33,15.9576]
[1731725123686,4.5574,219.42,219.35,8.73810024]
[1731725124791,4.5574,219.42,219.35,13.29690024]
[1731725124969,0.12549,219.43,219.37,8.73810024]
[1731725125589,4.68279,219.43,219.37,8.73810024]
[1731725125966,13.42089024,219.43,219.35,4.5588]
[1731725126167,13.42089024,219.43,219.36,8.73810024]
[1731725126579,4.68279,219.43,219.38,8.73810024]
[1731725127287,4.5573,219.43,219.38,8.73810024]
[1731725127679,4.5568,219.45,219.38,8.73810024]
[1731725127883,0.12549,219.44,219.38,8.73810024]
[1731725128178,16.6432,219.46,219.42,8.73810024]
[1731725128984,16.6432,219.46,219.43,8.73810024]
[1731725129568,16.6432,219.46,219.39,11.3951]
[1731725129569,4.5556,219.51,219.44,8.73810024]
[1731725129787,21.1324,219.52,219.46,8.73810024]
[1731725130089,21.1324,219.52,219.45,8.73810024]
[1731725130674,29.87050024,219.52,219.45,8.73810024]
[1731725131386,0.12549,219.49,219.43,8.73810024]
[1731725131592,8.86359024,219.49,219.41,8.73810024]
[1731725132182,8.86359024,219.47,219.4,20.13280024]
[1731725133291,13.42019024,219.47,219.4,20.13280024]
[1731725133872,8.73810024,219.46,219.39,8.73810024]
[1731725134073,0.12549,219.45,219.38,8.73810024]
[1731725134479,0.12549,219.45,219.36,4.5586]
[1731725134680,0.12549,219.43,219.36,8.73810024]
[1731725135679,4.5574,219.42,219.36,8.73810024]
[1731725136696,13.29550024,219.42,219.34,8.73810024]
[1731725136908,8.73810024,219.41,219.34,8.73810024]
[1731725137995,8.73810024,219.39,219.3,11.3999]
[1731725138199,8.73810024,219.4,219.32,8.73810024]
[1731725138492,8.73810024,219.4,219.3,11.3999]
[1731725138493,8.73810024,219.4,219.33,8.73810024]
[1731725139283,8.73810024,219.4,219.32,8.73810024]
[1731725139685,28.460374,219.39,219.3,11.3999]
[1731725139900,37.19847424,219.39,219.32,8.73810024]
[1731725141487,8.73810024,219.38,219.31,8.73810024]
[1731725142198,37.19847424,219.39,219.32,8.73810024]
[1731725142988,13.42159024,219.39,219.32,8.73810024]
[1731725144485,4.68349,219.39,219.32,8.73810024]
[1731725144699,0.12549,219.36,219.25,15.9631]
[1731725144912,0.12549,219.36,219.3,8.73810024]
[1731725145083,8.86359024,219.36,219.29,8.73810024]
[1731725145402,32.51498424,219.35,219.25,15.9631]
[1731725145702,8.86359024,219.34,219.25,15.9631]
[1731725145901,8.86359024,219.34,219.27,8.73810024]
[1731725146215,0.12549,219.34,219.25,15.9631]
[1731725146406,0.12549,219.34,219.28,8.73810024]
[1731725146612,4.5593,219.33,219.28,8.73810024]
[1731725147018,4.5593,219.33,219.25,15.9631]
[1731725147207,4.5593,219.33,219.28,8.73810024]
[1731725147722,4.5593,219.33,219.27,8.73810024]
[1731725150303,4.68419,219.36,219.31,8.73810024]
[1731725150623,4.68419,219.36,219.3,8.73810024]
[1731725151123,13.42229024,219.36,219.29,8.73810024]
[1731725151497,4.68419,219.36,219.27,4.5605]
[1731725151701,8.73810024,219.33,219.26,8.73810024]
[1731725151916,0.12549,219.33,219.27,8.73810024]
[1731725152400,32.51498424,219.35,219.27,8.73810024]
[1731725152608,0.12549,219.34,219.27,8.73810024]
[1731725152818,4.5593,219.33,219.28,8.73810024]
[1731725152992,4.5593,219.33,219.27,8.73810024]
[1731725153722,4.5593,219.33,219.28,8.73810024]
[1731725154019,13.29740024,219.33,219.25,15.9629]
[1731725154400,13.29740024,219.33,219.25,24.70100024]
[1731725154724,8.86359024,219.31,219.24,0.4281631]
[1731725155021,8.73810024,219.3,219.24,0.4281631]
[1731725155216,0.12549,219.22,219.12,8.73810024]
[1731725155424,8.73810024,219.2,219.12,8.73810024]
[1731725155623,8.73810024,219.15,219.07,13.30280024]
[1731725155811,8.73810024,219.15,219.05,15.9777]
[1731725156126,8.73810024,219.15,219.07,8.73810024]
[1731725156303,15.609,219.17,219.12,8.73810024]
[1731725156499,15.609,219.17,219.13,8.73810024]
[1731725156712,15.609,219.17,219.11,8.73810024]
[1731725158123,15.609,219.17,219.12,8.73810024]
[1731725158704,15.609,219.17,219.11,8.73810024]
[1731725160011,15.609,219.17,219.12,8.73810024]
[1731725160613,15.609,219.17,219.11,8.73810024]
[1731725160818,15.609,219.17,219.12,8.73810024]
[1731725161003,0.12549,219.16,219.09,8.73810024]
[1731725161202,0.12549,219.16,219.08,11.4113]
[1731725161203,8.73810024,219.15,219.08,8.73810024]
[1731725161405,0.12549,219.14,219.03,11.4137]
[1731725161600,0.12549,219.14,219.07,8.73810024]
[1731725161812,0.12549,219.14,219.08,8.73810024]
[1731725162021,32.64047424,219.12,219.03,11.4137]
[1731725162226,32.64047424,219.12,219.02,0.4281631]
[1731725162227,0.21916462,219.11,219.04,8.73810024]
[1731725162528,8.86359024,219.1,219.03,8.73810024]
[1731725162921,8.73810024,219.1,219.03,8.73810024]
[1731725163109,4.5643,219.09,219.02,9.16626334]
[1731725163309,32.51498424,219.08,219.02,0.4281631]
[1731725163512,24.84700024,219.07,219.02,0.4281631]
[1731725164017,8.73810024,219.05,219.02,0.4281631]
[1731725164326,59.17065886,219.03,219.02,0.4281631]
[1731725164710,0.09367462,219.01,218.89,8.73810024]
[1731725164914,8.73810024,218.95,218.87,8.73810024]
[1731725165134,4.5674,218.94,218.83,4.5696]
[1731725165428,30.43255862,218.91,218.83,8.73810024]
[1731725165905,8.73810024,218.9,218.81,0.4281631]
[1731725166234,8.73810024,218.9,218.82,8.73810024]
[1731725166607,30.43255862,218.91,218.81,0.4281631]
[1731725166608,30.43255862,218.91,218.83,8.86359024]
[1731725166831,30.43255862,218.91,218.83,13.8951174]
[1731725167020,4.5682,218.9,218.83,13.8951174]
[1731725167229,18.3378274,218.9,218.83,13.8951174]